[Event "HUN-chT Youth-Children 2018"]
[Site "Zalakaros"]
[Date "2018.07.26"]
[Round "1"]
[White "Juhasz, Balazs"]
[Black "Papp, Levente"]
[Result "0-1"]
[ECO "A04"]
[WhiteElo "1687"]
[BlackElo "2256"]
[Annotator "NA"]
[PlyCount "114"]
[EventDate "2018.07.26"]
[EventType "team-tourn"]
[EventCountry "HUN"]
[SourceTitle "playchess.com"]
[Source "ChessBase"]
[SourceQuality "1"]
[TimeControl "5400+30"]

1. Nf3 {[%emt 0:00:00]} f5 {[%emt 0:00:00]} 2. b3 {[%emt 0:00:00]} Nf6 {[%emt 0:00:00]} 3. Bb2 {[%emt 0:00:00]} e6 {[%emt 0:00:00]} 4. e3 {[%emt 0:00:16]} Be7 {[%emt 0:00:06]} 5. d4 {[%emt 0:00:26]} O-O {[%emt 0:00:24]} 6. Be2 {[%emt 0:00:33]} d5 {[%emt 0:00:23]} 7. O-O {[%emt 0:00:24]} c6 {[%emt 0:00:12]} 8. c4 {[%emt 0:00:40]} Ne4 {[%emt 0:04:31]} 9. Ne5 {[%emt 0:03:14]} Nd7 {[%emt 0:00:16]} 10. f3 {[%emt 0:01:51]} Nef6 {[%emt 0:00:46]} 11. f4 {[%emt 0:02:03]} Nxe5 {[%emt 0:02:51]} 12. dxe5 {[%emt 0:00:58]} Nd7 {[%emt 0:02:14]} 13. Ba3 Nc5 {[%emt 0:04:17]} 14. cxd5 {[%emt 0:09:57]} cxd5 {[%emt 0:04:44]} 15. Qc2 {[%emt 0:04:41]} b6 {[%emt 0:00:06]} 16. Nd2 {[%emt 0:04:09]} Bd7 {[%emt 0:04:26]} 17. Nf3 {[%emt 0:04:22]} Rc8 {[%emt 0:02:50]} 18. Qd1 {[%emt 0:04:37]} Ne4 {[%emt 0:00:18]} 19. Bxe7 {[%emt 0:00:56]} Qxe7 {[%emt 0:00:08]} 20. Bd3 {[%emt 0:07:40]} Rc3 {[%emt 0:02:25]} 21. Bxe4 {[%emt 0:05:05]} dxe4 {[%emt 0:00:52]} 22. Nd4 {[%emt 0:00:52]} Rxe3 {[%emt 0:00:20]} 23. Qc2 {[%emt 0:05:46]} Rc8 {[%emt 0:03:36]} 24. Qb2 {[%emt 0:00:13]} Qc5 {[%emt 0:00:17]} 25. Rac1 {[%emt 0:01:59]} Qd5 {[%emt 0:04:52]} 26. Rfd1 {[%emt 0:09:54]} Rxc1 {[%emt 0:02:00]} 27. Qxc1 {[%emt 0:00:55]} Rd3 {[%emt 0:00:08]} 28. Rxd3 {[%emt 0:00:41]} exd3 29. Nf3 {[%emt 0:04:58]} Bc6 {[%emt 0:02:16]} 30. Qd2 {[%emt 0:03:41]} Qc5+ {[%emt 0:00:10]} 31. Kf1 {[%emt 0:05:19]} Qc2 {[%emt 0:00:19]} 32. Ke1 {[%emt 0:00:48]} Bxf3 {[%emt 0:02:29]} 33. gxf3 {[%emt 0:00:30]} Qb1+ {[%emt 0:00:08]} 34. Kf2 {[%emt 0:00:36]} h6 35. Ke3 {[%emt 0:04:53]} Kh7 {[%emt 0:02:38]} 36. Kf2 {[%emt 0:04:52]} Qh1 {[%emt 0:00:18]} 37. Ke3 {[%emt 0:01:12]} Qf1 {[%emt 0:00:07]} 38. Qf2 {[%emt 0:01:40]} Qxf2+ {[%emt 0:02:31]} 39. Kxf2 {[%emt 0:00:05]} Kg6 {[%emt 0:00:05]} 40. Ke3 {[%emt 0:02:25]} Kh5 {[%emt 0:00:09]} 41. Kxd3 {[%emt 0:00:10]} g5 {[%emt 0:06:51]} 42. fxg5 {[%emt 0:05:24]} Kxg5 {[%emt 0:00:51]} 43. Ke3 {[%emt 0:00:25]} Kh4 {[%emt 0:00:07]} 44. Kf2 {[%emt 0:01:37]} Kh3 {[%emt 0:00:07]} 45. Kg1 {[%emt 0:00:16]} f4 {[%emt 0:00:09]} 46. Kh1 {[%emt 0:00:38]} Kh4 {[%emt 0:01:29]} 47. Kg2 {[%emt 0:00:09]} h5 {[%emt 0:00:32]} 48. a3 {[%emt 0:01:10]} a6 {[%emt 0:00:06]} 49. b4 {[%emt 0:00:01]} b5 {[%emt 0:00:09]} 50. Kf1 {[%emt 0:00:43]} Kg5 {[%emt 0:00:06]} 51. Kg2 {[%emt 0:00:34]} Kf5 {[%emt 0:00:06]} 52. Kh3 {[%emt 0:00:04]} Kxe5 {[%emt 0:00:06]} 53. Kh4 {[%emt 0:00:09]} Kf5 {[%emt 0:00:19]} 54. Kxh5 {[%emt 0:00:13]} e5 {[%emt 0:00:08]} 55. Kh4 {[%emt 0:00:44]} e4 {[%emt 0:00:06]} 56. fxe4+ {[%emt 0:00:25]} Kxe4 {[%emt 0:00:02]} 57. Kh3 {[%emt 0:00:14]} Kf3 {[%emt 0:00:10]} 0-1

[Event "HUN-chT Youth-Children 2018"]
[Site "Zalakaros"]
[Date "2018.07.26"]
[Round "1"]
[White "Turcsanyi, Vince Gergo"]
[Black "Kis, Vanda Liana"]
[Result "1-0"]
[ECO "B53"]
[WhiteElo "1639"]
[BlackElo "1062"]
[Annotator "NA"]
[PlyCount "45"]
[EventDate "2018.07.26"]
[EventType "team-tourn"]
[EventCountry "HUN"]
[SourceTitle "playchess.com"]
[Source "ChessBase"]
[SourceQuality "1"]
[TimeControl "5400+30"]

1. e4 {[%emt 0:00:00]} c5 {[%emt 0:00:00]} 2. Nf3 {[%emt 0:00:00]} d6 {[%emt 0:00:00]} 3. d4 {[%emt 0:00:00]} cxd4 {[%emt 0:00:00]} 4. Qxd4 {[%emt 0:00:00]} e5 {[%emt 0:00:04]} 5. Qd3 {[%emt 0:01:46]} Nc6 {[%emt 0:00:34]} 6. Nc3 {[%emt 0:01:11]} Nf6 {[%emt 0:00:53]} 7. Bg5 {[%emt 0:00:30]} Be7 {[%emt 0:00:54]} 8. O-O-O {[%emt 0:02:29]} Nb4 {[%emt 0:00:55]} 9. Qb5+ {[%emt 0:00:34]} Nc6 {[%emt 0:00:30]} 10. Nxe5 {[%emt 0:12:15]} a6 {[%emt 0:01:14]} 11. Nxc6 {[%emt 0:04:57]} bxc6 {[%emt 0:00:52]} 12. Qxc6+ {[%emt 0:01:06]} Bd7 {[%emt 0:00:10]} 13. Qc4 {[%emt 0:00:27]} O-O {[%emt 0:00:43]} 14. Bxf6 {[%emt 0:02:21]} Bxf6 {[%emt 0:00:21]} 15. Rxd6 {[%emt 0:02:02]} Bg5+ 16. Kb1 Qe8 {[%emt 0:02:49]} 17. Qd5 {[%emt 0:02:21]} Bf6 {[%emt 0:02:57]} 18. Rxd7 {[%emt 0:01:54]} Qb8 {[%emt 0:00:52]} 19. Rb7 {[%emt 0:03:10]} Qc8 {[%emt 0:01:11]} 20. e5 {[%emt 0:01:57]} Bd8 {[%emt 0:05:33]} 21. Bc4 {[%emt 0:02:32]} Qf5 {[%emt 0:03:36]} 22. Rxf7 {[%emt 0:02:26]} Rxf7 {[%emt 0:00:38]} 23. Qxa8 {[%emt 0:00:36]} 1-0

[Event "HUN-chT Youth-Children 2018"]
[Site "Zalakaros"]
[Date "2018.07.26"]
[Round "1"]
[White "Gulacsi, Donat Ferenc"]
[Black "Vilics, Hanna"]
[Result "1/2-1/2"]
[ECO "B50"]
[WhiteElo "1610"]
[BlackElo "1205"]
[Annotator "NA"]
[PlyCount "45"]
[EventDate "2018.07.26"]
[EventType "team-tourn"]
[EventCountry "HUN"]
[SourceTitle "playchess.com"]
[Source "ChessBase"]
[SourceQuality "1"]
[TimeControl "5400+30"]

1. e4 {[%emt 0:00:13]} c5 {[%emt 0:00:00]} 2. Nf3 {[%emt 0:00:23]} d6 {[%emt 0:00:04]} 3. c4 {[%emt 0:05:23]} Nf6 {[%emt 0:02:01]} 4. Nc3 {[%emt 0:00:51]} g6 {[%emt 0:01:14]} 5. d4 {[%emt 0:01:02]} cxd4 {[%emt 0:00:55]} 6. Nxd4 {[%emt 0:00:36]} Bg7 {[%emt 0:00:40]} 7. Be3 {[%emt 0:01:35]} O-O {[%emt 0:01:03]} 8. Be2 {[%emt 0:00:32]} Nc6 {[%emt 0:00:41]} 9. O-O {[%emt 0:00:38]} Nxd4 {[%emt 0:00:45]} 10. Bxd4 {[%emt 0:00:51]} Be6 {[%emt 0:01:10]} 11. Rc1 {[%emt 0:01:09]} a6 {[%emt 0:03:03]} 12. b3 {[%emt 0:02:27]} Rc8 {[%emt 0:04:33]} 13. Qd3 {[%emt 0:01:57]} Bg4 {[%emt 0:02:50]} 14. Bxg4 {[%emt 0:03:07]} Nxg4 {[%emt 0:00:13]} 15. Bxg7 {[%emt 0:00:33]} Kxg7 {[%emt 0:00:08]} 16. Qd4+ {[%emt 0:01:36]} Nf6 {[%emt 0:00:47]} 17. Nd5 {[%emt 0:04:27]} e5 {[%emt 0:07:48]} 18. Qd3 {[%emt 0:00:41]} Nxd5 {[%emt 0:01:42]} 19. Qxd5 {[%emt 0:00:59]} Qb6 {[%emt 0:00:32]} 20. Rfd1 {[%emt 0:01:01]} Rfd8 {[%emt 0:02:11]} 21. h3 {[%emt 0:05:44]} Qc6 {[%emt 0:02:13]} 22. c5 {[%emt 0:16:50]} Qxd5 {[%emt 0:13:23]} 23. Rxd5 {[%emt 0:01:08]} 1/2-1/2

[Event "HUN-chT Youth-Children 2018"]
[Site "Zalakaros"]
[Date "2018.07.26"]
[Round "1"]
[White "Bako, Milan"]
[Black "Juhasz, Judit"]
[Result "0-1"]
[ECO "B24"]
[WhiteElo "1573"]
[BlackElo "1926"]
[Annotator "NA"]
[PlyCount "66"]
[EventDate "2018.07.26"]
[EventType "team-tourn"]
[EventCountry "HUN"]
[SourceTitle "playchess.com"]
[Source "ChessBase"]
[SourceQuality "1"]
[TimeControl "5400+30"]

1. e4 {[%emt 0:00:00]} c5 {[%emt 0:00:00]} 2. Nc3 {[%emt 0:00:00]} Nc6 {[%emt 0:00:00]} 3. g3 {[%emt 0:00:00]} g6 {[%emt 0:00:07]} 4. Bg2 {[%emt 0:00:00]} Bg7 {[%emt 0:00:11]} 5. Nge2 {[%emt 0:00:08]} e6 {[%emt 0:00:23]} 6. O-O {[%emt 0:00:55]} Nge7 {[%emt 0:00:33]} 7. d3 {[%emt 0:00:32]} d6 {[%emt 0:00:34]} 8. Bd2 {[%emt 0:00:53]} O-O {[%emt 0:01:28]} 9. Qc1 {[%emt 0:02:02]} Nd4 {[%emt 0:00:48]} 10. Bh6 {[%emt 0:01:08]} Bxh6 {[%emt 0:00:30]} 11. Qxh6 {[%emt 0:00:14]} Nxc2 {[%emt 0:00:05]} 12. Rac1 {[%emt 0:00:24]} Nb4 {[%emt 0:02:41]} 13. Qd2 {[%emt 0:01:50]} Rb8 {[%emt 0:01:54]} 14. a3 {[%emt 0:03:45]} Nbc6 {[%emt 0:02:39]} 15. d4 {[%emt 0:00:27]} c4 {[%emt 0:02:32]} 16. d5 {[%emt 0:01:58]} Na5 {[%emt 0:00:48]} 17. Rc2 {[%emt 0:02:12]} Nb3 {[%emt 0:09:09]} 18. Qd1 {[%emt 0:01:03]} e5 {[%emt 0:08:57]} 19. h3 {[%emt 0:14:25]} b5 {[%emt 0:02:52]} 20. Na2 {[%emt 0:06:57]} Nc5 {[%emt 0:04:18]} 21. Nec1 {[%emt 0:02:29]} f5 {[%emt 0:02:51]} 22. f3 {[%emt 0:03:02]} a5 {[%emt 0:01:40]} 23. Qe1 {[%emt 0:06:57]} Qb6 {[%emt 0:01:16]} 24. Kh2 {[%emt 0:00:19]} Ba6 {[%emt 0:00:58]} 25. Rff2 {[%emt 0:01:23]} b4 {[%emt 0:01:45]} 26. axb4 {[%emt 0:00:45]} axb4 {[%emt 0:00:07]} 27. Rcd2 {[%emt 0:00:23]} f4 {[%emt 0:10:20]} 28. Bf1 {[%emt 0:03:19]} Rb7 {[%emt 0:05:02]} 29. Be2 {[%emt 0:06:27]} Nxe4 {[%emt 0:05:49]} 30. fxe4 {[%emt 0:02:51]} fxg3+ {[%emt 0:00:09]} 31. Kxg3 {[%emt 0:00:30]} Qe3+ {[%emt 0:00:12]} 32. Kg2 {[%emt 0:00:18]} Rxf2+ {[%emt 0:00:33]} 33. Qxf2 {[%emt 0:00:16]} Qxd2 {[%emt 0:00:15]} 0-1

[Event "HUN-chT Youth-Children 2018"]
[Site "Zalakaros"]
[Date "2018.07.26"]
[Round "1"]
[White "Markus, Molli Amina"]
[Black "Herczeg, Zsofia"]
[Result "1-0"]
[ECO "A25"]
[WhiteElo "1566"]
[BlackElo "1270"]
[Annotator "NA"]
[PlyCount "75"]
[EventDate "2018.07.26"]
[EventType "team-tourn"]
[EventCountry "HUN"]
[SourceTitle "playchess.com"]
[Source "ChessBase"]
[SourceQuality "1"]
[TimeControl "5400+30"]

1. c4 {[%emt 0:00:00]} e5 {[%emt 0:00:00]} 2. Nc3 {[%emt 0:00:17]} Nc6 {[%emt 0:00:11]} 3. d3 {[%emt 0:00:59]} Nf6 {[%emt 0:00:32]} 4. g3 {[%emt 0:01:02]} Bc5 {[%emt 0:00:40]} 5. Bg2 {[%emt 0:00:55]} d6 {[%emt 0:00:32]} 6. e3 {[%emt 0:01:21]} Bg4 {[%emt 0:00:53]} 7. Nge2 {[%emt 0:01:44]} Bb4 {[%emt 0:04:06]} 8. O-O {[%emt 0:03:20]} O-O {[%emt 0:00:20]} 9. Bd2 {[%emt 0:01:59]} Qd7 {[%emt 0:01:04]} 10. Re1 {[%emt 0:02:27]} a6 {[%emt 0:01:20]} 11. a3 {[%emt 0:03:29]} Ba5 {[%emt 0:00:38]} 12. b4 {[%emt 0:01:25]} Bb6 {[%emt 0:00:13]} 13. Rc1 {[%emt 0:05:05]} Bh3 {[%emt 0:01:14]} 14. Bh1 {[%emt 0:03:51]} Ng4 {[%emt 0:00:56]} 15. Nd5 {[%emt 0:05:57]} Qf5 {[%emt 0:01:17]} 16. f3 {[%emt 0:00:52]} Nf6 {[%emt 0:01:01]} 17. Nxf6+ {[%emt 0:02:14]} Qxf6 {[%emt 0:00:20]} 18. Nc3 {[%emt 0:01:36]} Ne7 {[%emt 0:00:23]} 19. Ne4 {[%emt 0:01:25]} Qf5 {[%emt 0:00:29]} 20. Nf2 {[%emt 0:00:47]} c6 {[%emt 0:00:15]} 21. g4 {[%emt 0:01:17]} Bxg4 {[%emt 0:01:01]} 22. fxg4 {[%emt 0:00:58]} Qg6 {[%emt 0:00:45]} 23. Qf3 {[%emt 0:01:12]} f5 {[%emt 0:00:16]} 24. Qg3 {[%emt 0:01:13]} f4 {[%emt 0:00:19]} 25. exf4 {[%emt 0:00:35]} Bxf2+ {[%emt 0:00:20]} 26. Kxf2 {[%emt 0:00:30]} exf4 {[%emt 0:00:21]} 27. Qf3 {[%emt 0:02:38]} Qf6 {[%emt 0:00:33]} 28. Bc3 {[%emt 0:01:42]} Qg5 {[%emt 0:00:24]} 29. h3 {[%emt 0:03:38]} Ng6 {[%emt 0:01:08]} 30. Re6 {[%emt 0:03:03]} Nh4 {[%emt 0:00:21]} 31. Qe4 {[%emt 0:00:53]} f3 {[%emt 0:00:28]} 32. Re1 {[%emt 0:01:16]} d5 {[%emt 0:00:46]} 33. cxd5 {[%emt 0:01:10]} cxd5 {[%emt 0:00:29]} 34. Qd4 {[%emt 0:00:55]} Rf4 {[%emt 0:01:15]} 35. Re8+ {[%emt 0:02:04]} Rxe8 {[%emt 0:00:09]} 36. Rxe8+ {[%emt 0:00:08]} Kf7 {[%emt 0:00:20]} 37. Qe3 {[%emt 0:00:51]} Ng2 {[%emt 0:00:12]} 38. Qe6# {[%emt 0:00:15]} 1-0

[Event "HUN-chT Youth-Children 2018"]
[Site "Zalakaros"]
[Date "2018.07.26"]
[Round "1"]
[White "Gyorgyfalvai, Fanni"]
[Black "Dibusz, Domonkos"]
[Result "0-1"]
[ECO "C92"]
[WhiteElo "1476"]
[BlackElo "2076"]
[Annotator "NA"]
[PlyCount "54"]
[EventDate "2018.07.26"]
[EventType "team-tourn"]
[EventCountry "HUN"]
[SourceTitle "playchess.com"]
[Source "ChessBase"]
[SourceQuality "1"]
[TimeControl "5400+30"]

1. e4 {[%emt 0:00:00]} e5 {[%emt 0:00:00]} 2. Nf3 {[%emt 0:00:00]} Nc6 {[%emt 0:00:00]} 3. Bb5 {[%emt 0:00:00]} a6 {[%emt 0:00:00]} 4. Ba4 {[%emt 0:00:11]} Nf6 {[%emt 0:00:00]} 5. O-O {[%emt 0:00:33]} Be7 {[%emt 0:00:01]} 6. Re1 {[%emt 0:00:22]} b5 {[%emt 0:00:05]} 7. Bb3 {[%emt 0:00:43]} d6 {[%emt 0:00:05]} 8. c3 {[%emt 0:01:30]} O-O {[%emt 0:00:08]} 9. h3 {[%emt 0:01:09]} Bb7 {[%emt 0:01:15]} 10. d4 {[%emt 0:01:43]} Nd7 {[%emt 0:00:00]} 11. Nbd2 {[%emt 0:03:06]} exd4 {[%emt 0:00:55]} 12. cxd4 {[%emt 0:00:32]} Bf6 {[%emt 0:00:05]} 13. Nf1 {[%emt 0:01:27]} Na5 {[%emt 0:01:06]} 14. Bc2 {[%emt 0:01:41]} Re8 {[%emt 0:00:31]} 15. Ng3 {[%emt 0:02:10]} g6 {[%emt 0:00:12]} 16. Bf4 {[%emt 0:13:37]} c5 {[%emt 0:05:53]} 17. Bxd6 {[%emt 0:11:17]} cxd4 {[%emt 0:00:20]} 18. Nxd4 {[%emt 0:00:12]} Nc4 {[%emt 0:03:10]} 19. Bb4 {[%emt 0:07:45]} Nxb2 {[%emt 0:02:13]} 20. Qd2 {[%emt 0:01:55]} Nc4 {[%emt 0:00:19]} 21. Qd1 {[%emt 0:02:09]} a5 {[%emt 0:00:57]} 22. Bc3 {[%emt 0:01:20]} b4 {[%emt 0:00:20]} 23. Qd3 {[%emt 0:07:10]} Nde5 {[%emt 0:00:31]} 24. Qf1 {[%emt 0:02:46]} bxc3 {[%emt 0:00:31]} 25. Nb3 {[%emt 0:03:51]} Ba6 {[%emt 0:00:08]} 26. Red1 {[%emt 0:05:02]} Nd2 {[%emt 0:00:32]} 27. Qe1 {[%emt 0:00:25]} Ndf3+ {[%emt 0:00:43]} 0-1

[Event "HUN-chT Youth-Children 2018"]
[Site "Zalakaros"]
[Date "2018.07.26"]
[Round "1"]
[White "Vadkerti, Vince"]
[Black "Kocsmar, Akos"]
[Result "0-1"]
[ECO "B23"]
[WhiteElo "1299"]
[BlackElo "1721"]
[Annotator "NA"]
[PlyCount "44"]
[EventDate "2018.07.26"]
[EventType "team-tourn"]
[EventCountry "HUN"]
[SourceTitle "playchess.com"]
[Source "ChessBase"]
[SourceQuality "1"]
[TimeControl "5400+30"]

1. e4 {[%emt 0:00:00]} c5 {[%emt 0:00:00]} 2. Nc3 {[%emt 0:00:06]} d6 {[%emt 0:00:06]} 3. f4 {[%emt 0:00:33]} g6 {[%emt 0:00:06]} 4. Nf3 {[%emt 0:00:35]} Bg7 {[%emt 0:00:13]} 5. Bc4 {[%emt 0:00:40]} Nc6 {[%emt 0:00:12]} 6. d3 {[%emt 0:00:43]} e6 {[%emt 0:00:03]} 7. O-O {[%emt 0:01:38]} Nge7 {[%emt 0:01:15]} 8. Qe2 {[%emt 0:04:26]} O-O {[%emt 0:00:53]} 9. Be3 {[%emt 0:01:58]} d5 {[%emt 0:00:13]} 10. exd5 {[%emt 0:02:19]} exd5 {[%emt 0:00:04]} 11. Bxc5 {[%emt 0:04:23]} dxc4 {[%emt 0:00:07]} 12. Rad1 {[%emt 0:08:22]} Re8 {[%emt 0:06:23]} 13. dxc4 {[%emt 0:01:45]} Qa5 {[%emt 0:01:10]} 14. b4 {[%emt 0:03:51]} Nxb4 {[%emt 0:02:11]} 15. Bxe7 {[%emt 0:01:45]} Bxc3 {[%emt 0:02:04]} 16. Bxb4 {[%emt 0:02:31]} Rxe2 {[%emt 0:01:36]} 17. Bxa5 {[%emt 0:00:42]} Bxa5 {[%emt 0:00:02]} 18. Rf2 {[%emt 0:01:55]} Bb6 {[%emt 0:00:55]} 19. Nd4 {[%emt 0:00:48]} Re4 {[%emt 0:00:07]} 20. c3 {[%emt 0:01:26]} Bg4 {[%emt 0:01:19]} 21. Rd3 {[%emt 0:01:44]} Rd8 {[%emt 0:00:42]} 22. Rfd2 {[%emt 0:01:09]} Be2 {[%emt 0:00:24]} 0-1

[Event "HUN-chT Youth-Children 2018"]
[Site "Zalakaros"]
[Date "2018.07.26"]
[Round "1"]
[White "Andras, Ferenc"]
[Black "Pasti, Aron"]
[Result "0-1"]
[ECO "C54"]
[WhiteElo "1202"]
[BlackElo "2069"]
[Annotator "NA"]
[PlyCount "86"]
[EventDate "2018.07.26"]
[EventType "team-tourn"]
[EventCountry "HUN"]
[SourceTitle "playchess.com"]
[Source "ChessBase"]
[SourceQuality "1"]
[TimeControl "5400+30"]

1. e4 {[%emt 0:00:00]} e5 {[%emt 0:00:00]} 2. Nf3 {[%emt 0:00:00]} Nc6 {[%emt 0:00:00]} 3. Bc4 {[%emt 0:00:15]} Bc5 {[%emt 0:00:00]} 4. c3 {[%emt 0:00:38]} Nf6 {[%emt 0:00:00]} 5. d4 {[%emt 0:00:51]} exd4 {[%emt 0:00:00]} 6. O-O {[%emt 0:01:25]} Nxe4 {[%emt 0:27:42]} 7. cxd4 {[%emt 0:00:37]} Be7 {[%emt 0:03:01]} 8. d5 {[%emt 0:04:50]} Nb8 {[%emt 0:02:25]} 9. Qd4 {[%emt 0:06:28]} Nf6 {[%emt 0:00:56]} 10. Bg5 {[%emt 0:05:08]} O-O {[%emt 0:01:26]} 11. Nc3 {[%emt 0:03:55]} h6 {[%emt 0:02:17]} 12. Bh4 {[%emt 0:01:33]} d6 {[%emt 0:04:55]} 13. h3 {[%emt 0:05:53]} Bf5 {[%emt 0:00:37]} 14. Rfe1 {[%emt 0:02:31]} Nbd7 {[%emt 0:02:24]} 15. Nd1 {[%emt 0:03:47]} Nb6 {[%emt 0:05:03]} 16. Ne3 {[%emt 0:03:44]} Bg6 17. Ng4 {[%emt 0:06:26]} Nxc4 {[%emt 0:09:27]} 18. Qxc4 {[%emt 0:00:18]} Nxd5 {[%emt 0:01:45]} 19. Qxd5 Bxh4 {[%emt 0:01:01]} 20. Qxb7 {[%emt 0:02:34]} h5 {[%emt 0:02:11]} 21. Ne3 {[%emt 0:01:14]} Bf6 {[%emt 0:00:24]} 22. Nd5 {[%emt 0:03:13]} c5 {[%emt 0:00:12]} 23. Nxf6+ {[%emt 0:01:25]} Qxf6 {[%emt 0:00:43]} 24. b3 {[%emt 0:01:41]} Rfe8 {[%emt 0:00:39]} 25. Qc6 {[%emt 0:02:20]} Be4 {[%emt 0:01:18]} 26. Qa4 {[%emt 0:02:15]} d5 {[%emt 0:00:54]} 27. Rac1 {[%emt 0:01:42]} Rec8 {[%emt 0:02:18]} 28. Nd2 {[%emt 0:02:34]} Bf5 {[%emt 0:00:28]} 29. Nf3 {[%emt 0:03:53]} Bxh3 {[%emt 0:02:45]} 30. Qb5 {[%emt 0:09:44]} Bg4 {[%emt 0:03:36]} 31. Ne5 {[%emt 0:01:00]} Qb6 {[%emt 0:01:09]} 32. Qd3 {[%emt 0:04:30]} d4 {[%emt 0:01:26]} 33. Qc4 {[%emt 0:01:56]} Qe6 {[%emt 0:01:02]} 34. Qd3 {[%emt 0:01:34]} Qf6 {[%emt 0:01:27]} 35. Re4 {[%emt 0:04:11]} Bf5 {[%emt 0:00:55]} 36. Nc4 {[%emt 0:00:39]} Bxe4 {[%emt 0:00:44]} 37. Qxe4 {[%emt 0:00:16]} Re8 {[%emt 0:00:24]} 38. Qd3 {[%emt 0:00:22]} Qg6 {[%emt 0:00:57]} 39. Qf3 {[%emt 0:01:32]} Rad8 {[%emt 0:01:54]} 40. Rd1 {[%emt 0:00:40]} Qg4 {[%emt 0:00:24]} 41. Qxg4 {[%emt 0:01:40]} hxg4 {[%emt 0:00:55]} 42. Kh2 {[%emt 0:00:29]} Re2 {[%emt 0:00:25]} 43. Kg3 {[%emt 0:00:44]} Rxa2 {[%emt 0:00:23]} 0-1

[Event "HUN-chT Youth-Children 2018"]
[Site "Zalakaros"]
[Date "2018.07.26"]
[Round "1"]
[White "Szucs, Vivien"]
[Black "Szabo, Akos"]
[Result "1/2-1/2"]
[ECO "C47"]
[WhiteElo "1087"]
[BlackElo "1322"]
[Annotator "NA"]
[PlyCount "77"]
[EventDate "2018.07.26"]
[EventType "team-tourn"]
[EventCountry "HUN"]
[SourceTitle "playchess.com"]
[Source "ChessBase"]
[SourceQuality "1"]
[TimeControl "5400+30"]

1. e4 {[%emt 0:00:00]} e5 {[%emt 0:00:00]} 2. Nc3 {[%emt 0:00:00]} Nc6 {[%emt 0:00:12]} 3. Nf3 {[%emt 0:00:06]} Nf6 {[%emt 0:00:51]} 4. Bc4 {[%emt 0:00:38]} Nxe4 {[%emt 0:00:59]} 5. Nxe4 {[%emt 0:00:50]} d5 {[%emt 0:00:19]} 6. Bd3 {[%emt 0:01:06]} Nb4 {[%emt 0:00:41]} 7. Qe2 {[%emt 0:02:52]} Nxd3+ {[%emt 0:01:30]} 8. Qxd3 {[%emt 0:00:28]} dxe4 {[%emt 0:01:17]} 9. Qxd8+ {[%emt 0:01:12]} Kxd8 {[%emt 0:00:26]} 10. Nxe5 {[%emt 0:00:27]} Ke8 {[%emt 0:01:16]} 11. O-O {[%emt 0:01:11]} Bd6 {[%emt 0:01:09]} 12. Nc4 {[%emt 0:00:34]} Bc5 {[%emt 0:01:04]} 13. Re1 {[%emt 0:02:20]} f6 {[%emt 0:03:08]} 14. Rxe4+ {[%emt 0:00:35]} Kf7 {[%emt 0:01:28]} 15. d4 {[%emt 0:00:57]} Be7 {[%emt 0:01:06]} 16. Bf4 {[%emt 0:01:05]} Bf5 {[%emt 0:04:51]} 17. Re3 {[%emt 0:01:14]} Bxc2 {[%emt 0:02:24]} 18. Bxc7 {[%emt 0:01:47]} Rac8 {[%emt 0:05:33]} 19. Rc1 {[%emt 0:01:41]} Rxc7 {[%emt 0:01:02]} 20. Rxc2 {[%emt 0:00:20]} Rhc8 {[%emt 0:04:45]} 21. Rec3 {[%emt 0:00:59]} Ke8 {[%emt 0:04:38]} 22. d5 {[%emt 0:01:56]} Kd7 {[%emt 0:05:49]} 23. a3 {[%emt 0:05:44]} b5 {[%emt 0:05:43]} 24. d6 {[%emt 0:03:47]} Rxc4 {[%emt 0:00:49]} 25. Rxc4 {[%emt 0:02:04]} Rxc4 {[%emt 0:02:18]} 26. Rxc4 {[%emt 0:00:11]} bxc4 {[%emt 0:02:45]} 27. dxe7 {[%emt 0:00:23]} Kxe7 {[%emt 0:00:19]} 28. Kf1 {[%emt 0:00:21]} Kd6 {[%emt 0:01:05]} 29. Ke2 {[%emt 0:00:43]} Kd5 {[%emt 0:00:36]} 30. Ke3 {[%emt 0:00:55]} Ke5 {[%emt 0:00:17]} 31. f4+ {[%emt 0:00:18]} Kd5 {[%emt 0:01:03]} 32. g4 {[%emt 0:01:50]} g5 {[%emt 0:02:23]} 33. fxg5 {[%emt 0:05:30]} fxg5 34. h3 {[%emt 0:03:36]} h6 {[%emt 0:00:54]} 35. a4 {[%emt 0:02:27]} a5 {[%emt 0:00:31]} 36. Kf3 {[%emt 0:00:57]} Kd4 {[%emt 0:01:44]} 37. Ke2 {[%emt 0:00:28]} c3 {[%emt 0:00:48]} 38. b3 {[%emt 0:01:04]} Kc5 {[%emt 0:01:23]} 39. Kd3 {[%emt 0:01:08]} 1/2-1/2